bitfinex-derivatives/quotes_SOLF0:USTF0_20240918
["timestamp","ask_amount","ask_price","bid_price","bid_amount"]
[1726686962699,1.4101,130.79,130.69,47.71]
[1726686963197,3.8375285,130.81,130.74,47.71]
[1726686963406,1.4987,130.82,130.74,47.71]
[1726686963903,50.5457,130.85,130.76,47.71]
[1726686963904,3.821,130.84,130.76,47.71]
[1726686964105,47.71,130.87,130.76,47.71]
[1726686964305,47.71,130.87,130.78,47.71]
[1726686964505,1.4135,130.9,130.81,3.8216]
[1726686964506,3.8203,130.86,130.81,3.8216]
[1726686964707,49.1235,130.9,130.78,47.71]
[1726686965011,49.1235,130.9,130.81,3.8216]
[1726686965012,3.8205,130.86,130.81,3.8216]
[1726686965311,47.71,130.88,130.77,1.4957]
[1726686966015,47.71,130.86,130.74,1.4569]
[1726686966213,2.9031,130.85,130.74,1.4569]
[1726686966606,2.9031,130.85,130.74,5.2635867]
[1726686966806,2.9031,130.85,130.74,1.4569]
[1726686967110,3.8216,130.82,130.74,1.4569]
[1726686967307,3.91181211,130.82,130.74,1.4569]
[1726686967512,2.9031,130.85,130.74,1.4569]
[1726686968210,47.71,130.83,130.71,47.71]
[1726686968511,51.48716669,130.83,130.71,47.71]
[1726686969315,51.48716669,130.83,130.73,47.71]
[1726686969812,51.48716669,130.83,130.71,47.71]
[1726686970007,51.48716669,130.83,130.7,1.4957]
[1726686970008,47.71,130.81,130.7,1.4957]
[1726686970215,1.4683,130.82,130.71,47.71]
[1726686970406,1.4683,130.82,130.73,47.71]
[1726686970611,3.83567701,130.81,130.73,47.71]
[1726686970907,1.4683,130.82,130.73,51.52196695]
[1726686971310,5.30397701,130.82,130.73,47.71]
[1726686971509,3.8234,130.76,130.7,1.4957]
[1726686971713,47.71,130.81,130.7,1.4957]
[1726686971714,3.7699007,130.77,130.7,1.4957]
[1726686972011,3.7699007,130.77,130.68,200.65]
[1726686972012,47.71,130.77,130.68,152.94]
[1726686972205,3.8235,130.75,130.7,3.8248]
[1726686972513,51.56632772,130.77,130.66,47.71]
[1726686972814,7.67942772,130.77,130.72,3.8242]
[1726686973003,3.8231,130.77,130.68,47.71]
[1726686973403,7.61468108,130.78,130.68,47.71]
[1726686973619,47.71,130.81,130.68,47.71]
[1726686973911,1.4683,130.82,130.73,47.71]
[1726686974100,1.4683,130.82,130.75,47.71]
[1726686974308,2.9031,130.85,130.8,3.822]
[1726686974610,2.9031,130.85,130.75,47.71]
[1726686974611,47.71,130.88,130.77,47.71]
[1726686974908,1.4588,130.89,130.76,5.24501103]
[1726686975116,1.4588,130.89,130.8,47.71]
[1726686975302,3.8203,130.86,130.81,3.8216]
[1726686975609,3.8203,130.86,130.76,5.24501103]
[1726686975610,1.4588,130.89,130.82,47.71]
[1726686975811,50.6173,130.92,130.82,47.71]
[1726686976017,2.9073,130.92,130.82,47.71]
[1726686976409,2.9073,130.92,130.84,3.8208]
[1726686976410,3.8196,130.89,130.84,3.8208]
[1726686976612,3.88662403,130.9,130.82,47.71]
[1726686976917,3.8192,130.9,130.82,47.71]
[1726686977117,3.8192,130.9,130.83,1.4451]
[1726686977413,1.3992,130.92,130.83,1.4451]
[1726686978205,47.71,130.88,130.77,47.71]
[1726686978409,51.55985578,130.88,130.77,49.1551]
[1726686978612,51.55985578,130.88,130.8,3.8218]
[1726686978613,3.8208,130.85,130.8,3.8218]
[1726686978808,51.55985578,130.88,130.77,49.1551]
[1726686979208,3.8204,130.86,130.81,3.8215]
[1726686979411,51.55985578,130.88,130.77,49.1551]
[1726686979819,3.8203,130.86,130.77,49.1551]
[1726686980012,51.55985578,130.88,130.77,49.1551]
[1726686980315,1.3992,130.92,130.79,47.71]
[1726686980718,3.82,130.87,130.79,47.71]
[1726686980919,3.73128723,130.89,130.79,47.71]
[1726686981122,1.3992,130.92,130.77,49.1551]
[1726686981123,47.71,130.88,130.77,49.1551]
[1726686981317,47.71,130.86,130.77,1.4451]
[1726686981516,47.71,130.84,130.77,1.4451]
[1726686981818,47.71,130.84,130.73,47.71]
[1726686982008,51.61671085,130.84,130.73,47.71]
[1726686982209,47.71,130.82,130.72,1.4381]
[1726686982412,47.71,130.84,130.73,47.71]
[1726686982613,1.5054,130.85,130.75,47.71]
[1726686982822,3.8215,130.82,130.78,3.8226]
[1726686983012,3.79129051,130.83,130.72,52.99862943]
[1726686983212,1.5054,130.85,130.72,52.99862943]
[1726686983408,47.71,130.82,130.74,3.8237]
[1726686983614,47.71,130.82,130.72,5.17397347]
[1726686984214,47.71,130.84,130.73,47.71]
[1726686984721,47.71,130.82,130.76,3.8229]
[1726686984917,47.71,130.84,130.73,47.71]
[1726686985117,47.71,130.84,130.75,47.71]
[1726686985424,3.8216,130.82,130.75,47.71]
[1726686985620,47.71,130.84,130.75,47.71]
[1726686986011,1.5088,130.87,130.77,47.71]
[1726686986219,1.5088,130.87,130.8,47.71]
[1726686986414,49.1828,130.91,130.8,47.71]
[1726686986615,49.1828,130.91,130.81,1.4986]
[1726686986824,3.8201,130.87,130.81,1.4986]
[1726686987123,3.7343356,130.87,130.81,1.4986]
[1726686987317,49.1828,130.91,130.81,1.4986]
[1726686987913,3.8204,130.86,130.81,1.4986]
[1726686988122,3.79272704,130.89,130.81,1.4986]
[1726686988414,49.1828,130.91,130.81,1.4986]
[1726686989018,1.4728,130.91,130.82,47.71]
[1726686989719,3.82062879,130.9,130.82,47.71]
[1726686989918,49.1828,130.91,130.81,1.4986]
[1726686990222,1.3992,130.92,130.81,1.4986]
[1726686990422,47.71,130.91,130.81,1.4986]
[1726686990623,3.85367773,130.9,130.81,1.4986]
[1726686990823,47.71,130.91,130.81,1.4986]
[1726686991222,1.3992,130.92,130.76,155.7982]
[1726686991223,47.71,130.87,130.76,155.7982]
[1726686991427,1.4075,130.86,130.76,157.2972]
[1726686991626,1.4075,130.86,130.76,154.439]
[1726686991923,2.836,130.86,130.76,154.439]
[1726686992121,3.8209,130.84,130.8,3.8218]
[1726686992326,1.4285,130.86,130.8,47.71]
[1726686992522,3.91177146,130.88,130.8,47.71]
[1726686992825,1.4449,130.9,130.8,47.71]
[1726686993026,1.4449,130.9,130.83,47.71]
[1726686993234,1.4075,130.91,130.83,47.71]
[1726686993426,1.3992,130.92,130.85,47.71]
[1726686993733,50.5624,130.96,130.89,3.8194]
[1726686993935,50.5624,130.96,130.86,1.4705]
[1726686995435,2.8524,130.96,130.87,47.71]
[1726686996026,3.8172,130.97,130.93,3.818]
[1726686996229,1.3962,130.98,130.93,3.818]
[1726686996431,1.3962,130.98,130.89,47.71]
[1726686997430,3.81631302,130.99,130.91,47.71]
[1726686997627,49.1473,131.03,130.91,47.71]
[1726686997834,52.87801932,131.03,130.91,47.71]
[1726686998138,47.71,131.0,130.89,47.71]
[1726686998320,3.8175,130.96,130.91,3.8186]
[1726686998525,47.71,130.91,130.79,47.71]
[1726686998724,47.71,130.91,130.81,47.71]
[1726686998921,3.8196,130.89,130.84,3.8206]
[1726686999131,51.49189831,130.91,130.81,47.71]
[1726686999524,3.8199,130.88,130.83,3.8209]
[1726686999838,47.71,130.89,130.8,1.5145]
[1726687000032,3.8202,130.87,130.83,3.821]
[1726687000227,3.8202,130.87,130.8,1.5145]
[1726687000228,1.436,130.9,130.8,1.5145]
[1726687000627,3.8195,130.89,130.85,3.8205]
[1726687000835,51.49189831,130.91,130.81,47.71]
[1726687001132,47.71,130.94,130.81,47.71]
[1726687001636,3.8193,130.9,130.86,3.8202]
[1726687001832,3.8193,130.9,130.81,47.71]
[1726687001833,47.71,130.94,130.81,47.71]
[1726687002633,3.8193,130.9,130.81,47.71]
[1726687002940,47.71,130.94,130.84,47.71]
[1726687003127,47.71,130.94,130.81,47.71]
[1726687003426,3.819,130.91,130.86,3.8201]
[1726687003626,47.71,130.94,130.86,3.8201]
[1726687004025,47.71,130.94,130.81,47.71]
[1726687004429,47.71,130.92,130.81,47.71]
[1726687004629,47.71,130.92,130.8,1.5145]
[1726687004830,47.71,130.89,130.8,1.5145]
[1726687005029,51.5183798,130.91,130.8,1.5145]
[1726687005235,3.8199,130.88,130.8,1.5145]
[1726687005524,47.71,130.91,130.8,1.5145]
[1726687005731,47.71,130.91,130.81,47.71]
[1726687006037,51.49086868,130.91,130.81,47.71]
[1726687006226,3.82,130.87,130.81,47.71]
[1726687006425,51.49086868,130.91,130.81,47.71]
[1726687006631,47.71,130.93,130.83,47.71]
[1726687006828,4.4406,130.97,130.85,47.71]
[1726687006829,47.71,130.96,130.85,47.71]
[1726687007132,4.4406,130.97,130.85,47.71]
[1726687007331,3.8183,130.93,130.86,2.9778]
[1726687007536,4.4406,130.97,130.86,2.9778]
[1726687008243,4.4406,130.97,130.87,3.84917933]
[1726687008432,4.4406,130.97,130.87,5.24117933]
[1726687008628,3.8184,130.93,130.89,3.8193]
[1726687008837,4.4406,130.97,130.87,5.21672068]
[1726687009136,4.4406,130.97,130.87,1.392]
[1726687009340,4.4406,130.97,130.88,3.73529376]
[1726687009731,160.4912,131.03,130.87,49.102]
[1726687009732,47.71,131.0,130.87,49.102]
[1726687010235,3.8175,130.96,130.87,49.102]
[1726687010636,3.8175,130.96,130.87,52.82994865]
[1726687011138,3.8175,130.96,130.92,3.8183]
[1726687011638,47.71,131.0,130.89,47.71]
[1726687011940,47.71,131.0,130.93,3.818]
[1726687011941,51.47499896,131.0,130.93,3.818]
[1726687012640,3.8172,130.97,130.93,3.818]
[1726687013341,3.8174,130.96,130.92,3.8184]
[1726687013541,51.47499896,131.0,130.89,47.71]
[1726687014442,51.47499896,131.0,130.94,3.8178]
[1726687015239,3.8172,130.97,130.94,3.8178]
[1726687015444,51.47499896,131.0,130.93,3.8181]
[1726687016338,3.8172,130.97,130.94,3.8179]
[1726687016937,3.8169,130.98,130.95,3.8176]
[1726687017139,47.71,131.06,130.94,47.71]
[1726687017347,3.77731925,131.05,130.95,1.5312]
[1726687017535,3.8154,131.03,130.99,3.8162]
[1726687017735,3.77731925,131.05,130.95,4.4318]
[1726687017944,49.1026,131.04,130.95,4.4318]
[1726687018138,3.77464598,131.03,130.95,4.4318]
[1726687018337,47.71,131.02,130.92,47.71]
[1726687018641,3.8164,131.0,130.96,3.8173]
[1726687018945,6.65296432,131.03,130.94,3.77999251]
[1726687019138,6.65296432,131.03,130.98,3.8166]
[1726687019139,3.8158,131.02,130.98,3.8166]
[1726687019345,6.68427967,131.03,130.98,3.8166]
[1726687019541,6.68427967,131.03,130.95,1.4275]
[1726687019939,6.68427967,131.03,130.92,47.71]
[1726687020146,6.68427967,131.03,130.9,152.78]
[1726687020147,54.39427967,131.03,130.9,200.49]
[1726687020342,47.71,131.0,130.9,200.49]
[1726687020541,47.71,130.98,130.9,152.78]
[1726687021454,3.8175,130.96,130.92,3.8184]
[1726687022346,3.8175,130.96,130.93,3.8182]
[1726687022746,47.71,130.98,130.93,3.8182]
[1726687022947,47.71,131.0,130.9,200.49]
[1726687023346,47.71,131.0,130.92,3.8183]
[1726687023751,3.8175,130.96,130.92,3.8183]
[1726687023954,3.8175,130.96,130.9,152.78]
[1726687023955,6.68427967,131.03,130.93,47.71]
[1726687024253,3.8163,131.0,130.93,47.71]
[1726687024550,2.923,131.03,130.98,3.8167]
[1726687024748,2.923,131.03,130.93,47.71]
[1726687025050,2.923,131.03,130.95,3.8174]
[1726687025248,47.71,131.02,130.9,152.78]
[1726687025456,47.71,131.0,130.91,3.8186]
[1726687025751,47.71,130.98,130.9,152.78]
[1726687025941,1.5231,130.97,130.9,152.78]
[1726687026142,1.5231,130.97,130.89,3.8194]
[1726687026441,1.5231,130.97,130.85,47.71]
[1726687026442,1.5231,130.97,130.86,1.4097]
[1726687026842,3.8182,130.94,130.89,3.8191]
[1726687027044,1.5231,130.97,130.88,53.04108163]
[1726687027353,47.71,131.0,130.9,47.71]
[1726687027649,3.7966099,131.01,130.91,3.91464517]
[1726687027838,1.4314,131.02,130.94,3.8178]
[1726687028042,47.71,130.96,130.86,1.4097]
[1726687028241,4.3593,130.95,130.86,1.4097]
[1726687028445,4.3593,130.95,130.87,3.87797402]
[1726687028750,4.3593,130.95,130.86,1.4097]
[1726687029148,3.8175,130.96,130.91,3.8186]
[1726687029347,4.2745,131.01,130.91,3.78897008]
[1726687029544,4.2745,131.01,130.92,47.71]
[1726687029750,3.8165,131.0,130.92,51.58135677]
[1726687029949,4.2745,131.01,130.92,51.58135677]
[1726687030243,4.2745,131.01,130.93,1.4131]
[1726687030648,1.427,131.01,130.94,47.71]
[1726687030853,51.56302539,131.04,130.94,47.71]
[1726687031046,51.56302539,131.04,130.93,1.4131]
[1726687031246,3.8165,130.99,130.94,3.8178]
[1726687031955,3.8163,131.0,130.95,3.8175]
[1726687032158,51.56302539,131.04,130.93,1.4131]
[1726687032653,47.71,131.07,130.94,47.71]
[1726687032852,47.71,131.07,130.98,3.8166]
[1726687033051,47.71,131.07,130.94,47.71]
[1726687033761,52.0912,131.09,130.97,47.71]
[1726687033955,4.3812,131.09,130.99,47.71]
[1726687034152,3.8146,131.06,130.99,51.60850236]
[1726687034749,4.3812,131.09,130.93,47.71]
[1726687034750,47.71,131.04,130.93,47.71]
[1726687035052,51.50887354,131.04,130.94,3.8179]
[1726687035252,47.71,131.02,130.93,1.4892]
[1726687035448,4.5394,131.01,130.93,1.4892]
[1726687035750,4.5394,131.01,130.88,152.76]
[1726687035751,47.71,131.0,130.88,152.76]
[1726687035955,29.35,130.99,130.89,1.4892]
[1726687036153,3.8187,130.92,130.88,152.76]
[1726687036450,29.35,130.97,130.88,156.48699029]
[1726687036650,3.8178,130.95,130.9,3.8189]
[1726687036859,29.35,130.98,130.88,152.76]
[1726687037054,29.35,130.96,130.88,152.76]
[1726687037253,29.35,130.96,130.89,3.8194]
[1726687037455,29.35,130.96,130.88,152.76]
[1726687037761,3.8178,130.95,130.88,152.76]
[1726687038255,3.8173,130.97,130.93,3.818]
[1726687038564,47.7,130.98,130.88,152.76]
[1726687038756,3.8179,130.95,130.88,152.76]
[1726687038960,47.7,130.98,130.88,152.76]
[1726687039165,47.7,130.96,130.88,152.76]
[1726687039355,47.7,130.94,130.82,47.7]
[1726687039556,47.7,130.92,130.83,1.4243]
[1726687039755,47.7,130.9,130.78,47.7]
[1726687039957,47.7,130.87,130.79,3.8222]
[1726687040156,47.7,130.87,130.76,51.47216936]
[1726687040557,3.8203,130.86,130.81,3.8216]
[1726687040761,47.7,130.89,130.78,47.7]
[1726687041064,47.7,130.89,130.79,1.4138]
[1726687041267,3.8204,130.86,130.81,3.8215]
[1726687041757,47.7,130.89,130.79,1.4138]
[1726687043162,3.82,130.87,130.79,1.4138]
[1726687043762,3.8196,130.89,130.83,3.821]
[1726687044066,1.4101,130.91,130.84,3.89936524]
[1726687044360,2.9291,130.93,130.85,47.7]
[1726687044563,47.7,130.96,130.85,47.7]
[1726687044866,1.4248,130.99,130.87,47.7]
[1726687044867,47.7,130.98,130.87,47.7]
[1726687045656,3.8177,130.95,130.9,3.8189]
[1726687045861,47.7,130.98,130.87,47.7]
[1726687046059,47.7,130.96,130.86,4.3705]
[1726687046263,3.8187,130.92,130.86,4.3705]
[1726687046461,47.7,130.96,130.86,4.3705]
[1726687046760,3.8176,130.95,130.86,52.0705]
[1726687046956,47.7,130.98,130.88,47.7]
[1726687047161,4.3166,130.99,130.88,47.7]
[1726687047367,3.8174,130.96,130.91,3.8185]
[1726687047859,3.8174,130.96,130.88,47.7]
[1726687048053,3.8174,130.96,130.91,3.8185]
[1726687048258,4.3737,130.99,130.88,47.7]
[1726687048460,47.7,130.98,130.89,3.8192]
[1726687048659,47.7,130.98,130.86,52.0705]
[1726687048868,3.8182,130.93,130.86,52.0705]
[1726687049065,3.88221644,130.95,130.88,3.8196]
[1726687049260,47.7,130.96,130.86,4.3705]
[1726687049461,3.8187,130.92,130.86,4.3705]
[1726687049767,3.77255147,130.94,130.86,4.3705]
[1726687049971,3.77255147,130.94,130.83,152.8]
[1726687049972,3.8193,130.9,130.83,152.8]
[1726687050158,3.8193,130.9,130.83,156.56261666]
[1726687050363,3.8193,130.9,130.85,3.8203]
[1726687050568,3.8195,130.89,130.85,3.8203]
[1726687051163,3.81649388,130.91,130.81,4.5322]
[1726687051369,47.7,130.94,130.78,47.7]
[1726687051370,47.7,130.89,130.78,47.7]
[1726687051667,47.7,130.89,130.8,3.8219]
[1726687051668,3.8208,130.85,130.8,3.8219]
[1726687051865,47.7,130.89,130.78,51.51190859]
[1726687052162,3.8202,130.87,130.78,51.51190859]
[1726687052469,3.81572966,130.94,130.82,47.7]
[1726687052769,4.4764,130.95,130.85,47.7]
[1726687052967,3.90662734,130.94,130.85,47.7]
[1726687053269,8.28632675,130.95,130.85,47.7]
[1726687053466,8.28632675,130.95,130.82,47.7]
[1726687053765,8.28632675,130.95,130.85,47.7]
[1726687054163,3.8187,130.92,130.85,47.7]
[1726687054761,8.28632675,130.95,130.85,47.7]
[1726687055166,8.28632675,130.95,130.87,3.8198]
[1726687055359,6.77462675,130.95,130.85,47.7]
[1726687055559,8.18292675,130.95,130.85,47.7]
[1726687055859,47.7,131.0,130.87,47.7]
[1726687056168,4.3471,130.99,130.9,3.8189]
[1726687056670,4.3471,130.99,130.92,3.8183]
[1726687056879,4.3471,130.99,130.87,47.7]
[1726687057366,4.3471,130.99,130.91,3.8186]
[1726687057566,4.3471,130.99,130.87,47.7]
[1726687057773,3.8179,130.95,130.92,3.8184]
[1726687057969,4.3471,130.99,130.92,3.8184]
[1726687058172,4.3471,130.99,130.89,47.7]
[1726687058769,3.8178,130.95,130.89,47.7]
[1726687059072,4.3471,130.99,130.86,50.5895]
[1726687060064,4.3471,130.99,130.89,47.7]
[1726687060571,4.3471,130.99,130.92,47.7]
[1726687060871,3.7862768,131.02,130.94,47.7]
[1726687061064,52.0538,131.04,130.94,47.7]
[1726687061270,3.8161,131.01,130.94,47.7]
[1726687061480,8.20159385,131.04,130.94,47.7]
[1726687061769,3.816,131.01,130.94,47.7]
[1726687061973,3.816,131.01,130.94,50.6096]
[1726687062176,8.20159385,131.04,130.94,50.6096]
[1726687062874,3.8161,131.01,130.94,50.6096]
[1726687063071,8.20159385,131.04,130.94,50.6096]
[1726687063260,55.90159385,131.04,130.94,50.6096]
[1726687063467,55.90159385,131.04,130.94,2.9096]
[1726687064078,8.20159385,131.04,130.94,50.6096]
[1726687064271,8.20159385,131.04,130.96,47.7]
[1726687064477,3.8156,131.02,130.96,47.7]
[1726687065073,3.8163,131.0,130.96,47.7]
[1726687065372,4.3538,131.04,130.96,47.7]
[1726687065775,4.3538,131.04,130.95,1.3953]
[1726687065976,33.6838,131.04,130.95,1.3953]
[1726687066172,3.8162,131.0,130.95,1.3953]
[1726687066673,4.3538,131.04,130.97,3.8168]
[1726687066878,4.3538,131.04,130.96,29.33]
[1726687067078,4.3538,131.04,130.95,5.2127]
[1726687067274,4.3538,131.04,130.95,1.3953]
[1726687067473,29.33,131.03,130.94,2.9096]
[1726687067980,3.8164,131.0,130.94,32.2396]
[1726687068279,4.3538,131.04,130.96,29.33]
[1726687068875,2.8708,131.04,130.96,29.33]
[1726687070280,32.2008,131.04,130.95,1.4252]
[1726687070471,32.2008,131.04,130.95,5.2426]
[1726687070874,32.2008,131.04,130.95,1.4252]
[1726687071075,3.8169,130.98,130.94,6.7273]
[1726687071283,32.2008,131.04,130.91,29.33]
[1726687071482,29.33,131.02,130.91,29.33]
[1726687071780,29.33,131.02,130.91,33.11036119]
[1726687072171,3.8167,130.99,130.95,3.8176]
[1726687072372,3.8167,130.99,130.91,33.11036119]
[1726687072581,2.8708,131.04,130.91,33.11036119]
[1726687072582,32.2008,131.04,130.91,33.11036119]
[1726687073379,3.8166,130.99,130.95,3.8175]
[1726687073580,32.2008,131.04,130.91,33.11036119]
[1726687073977,2.8708,131.04,130.94,29.33]
[1726687074280,3.8145,131.06,130.98,29.33]
[1726687074578,1.3993,131.07,131.0,29.33]
[1726687074977,3.8143,131.07,131.03,3.8153]
[1726687075178,1.5365,131.1,131.0,29.33]
[1726687075882,3.8146,131.06,131.02,3.8154]
[1726687077586,3.77309951,131.05,130.98,29.33]
[1726687077887,29.33,131.07,130.96,30.8232]
[1726687078082,29.33,131.07,130.99,3.8162]
[1726687078278,29.33,131.07,130.96,30.8232]
[1726687078589,3.8156,131.02,130.99,3.8163]
[1726687078772,3.77196578,131.05,130.96,30.8232]
[1726687078971,29.33,131.07,130.96,30.8232]
[1726687079173,29.33,131.09,130.98,29.33]
[1726687079583,3.8152,131.04,131.01,3.8157]
[1726687080275,29.33,131.09,131.01,3.8157]
[1726687080687,29.33,131.09,130.98,29.33]
[1726687081085,29.33,131.07,130.99,3.8163]
[1726687081288,3.8161,131.01,130.96,30.8232]
[1726687081488,3.90283189,131.02,130.96,1.4932]
[1726687081675,29.33,131.03,130.91,29.33]
[1726687081987,3.8168,130.98,130.91,30.771]
[1726687082187,3.8168,130.98,130.95,3.8174]
[1726687082575,2.8579,131.02,130.95,3.8174]
[1726687082988,2.8579,131.02,130.92,3.72605522]
[1726687083181,1.4503,131.04,130.96,29.33]
[1726687083376,3.73330955,131.03,130.96,29.33]
[1726687083682,3.90741357,131.02,130.95,1.5199]
[1726687083879,1.4503,131.04,130.95,1.5199]
[1726687084185,29.33,131.02,130.94,1.5299]
[1726687084877,3.72843674,131.01,130.94,1.5299]
[1726687085079,29.33,131.02,130.91,1.441]
[1726687085290,33.18560763,131.02,130.91,1.441]
[1726687085484,29.33,131.0,130.91,1.441]
[1726687085784,2.8372,130.99,130.91,1.441]
[1726687085984,6.67180343,130.99,130.9,1.5299]
[1726687086187,29.33,130.97,130.89,1.5199]
[1726687086490,29.33,130.97,130.86,29.33]
[1726687086491,29.33,130.97,130.87,147.72]
[1726687086686,1.5108,130.96,130.87,147.72]
[1726687088788,3.818,130.94,130.89,3.8193]
[1726687089177,3.8188,130.92,130.87,147.72]
[1726687089384,1.5108,130.96,130.87,147.72]
[1726687089586,29.33,130.9,130.72,152.76]
[1726687089788,3.82,130.87,130.83,3.8211]
[1726687090087,29.33,130.9,130.78,32.2979]
[1726687090387,1.4782,130.89,130.78,36.21335983]
[1726687090591,3.8201,130.87,130.82,3.8212]
[1726687091291,3.8203,130.86,130.82,3.8212]
[1726687091680,3.82,130.87,130.82,3.8212]
[1726687092094,1.4782,130.89,130.78,36.21335983]
[1726687092299,1.4782,130.89,130.78,32.2979]
[1726687092886,1.4782,130.89,130.79,3.78336797]
[1726687093084,3.8198,130.88,130.83,3.8209]
[1726687093290,2.8369,130.92,130.82,29.33]
[1726687093589,6.68869506,130.92,130.82,29.33]
[1726687093896,2.8369,130.92,130.84,29.33]
[1726687094084,3.83765091,130.94,130.85,1.3887]
[1726687094389,1.4935,130.96,130.85,1.3887]
[1726687094390,4.3779,130.96,130.86,33.16406947]
[1726687094593,4.3779,130.96,130.87,1.5228]
[1726687094788,3.8178,130.95,130.87,1.5228]
[1726687095097,3.76491485,130.96,130.88,29.33]
[1726687095284,3.8171,130.97,130.92,3.8183]
[1726687095484,4.414,131.02,130.87,1.5228]
[1726687095695,29.33,130.98,130.87,1.5228]
[1726687095991,3.8181,130.94,130.89,3.8191]
[1726687096402,47.71,130.98,130.87,49.2328]
[1726687096585,47.71,131.0,130.89,47.71]
[1726687097496,3.8171,130.97,130.89,47.71]
[1726687097795,52.124,131.02,130.91,47.71]
[1726687097999,3.8164,131.0,130.95,3.8174]
[1726687098389,4.414,131.02,130.93,47.71]
[1726687098693,4.414,131.02,130.94,1.4656]
[1726687099592,52.124,131.02,130.92,2.9805]
[1726687099896,4.414,131.02,130.95,3.8174]
[1726687100197,4.414,131.02,130.92,2.9805]
[1726687100391,3.8166,130.99,130.95,3.8176]
[1726687101098,3.8163,131.0,130.96,3.8173]
[1726687101396,4.414,131.02,130.94,1.4607]
[1726687101697,52.124,131.02,130.94,5.2784]
[1726687101895,52.124,131.02,130.94,1.4607]
[1726687102093,52.124,131.02,130.92,2.9805]
[1726687102395,52.124,131.02,130.93,3.8181]
[1726687102787,3.8173,130.97,130.93,3.8181]
[1726687102992,52.124,131.02,130.93,3.8181]
[1726687103494,3.8172,130.97,130.93,3.8181]
[1726687103800,52.124,131.02,130.93,3.8181]
[1726687104190,3.8175,130.96,130.93,3.8181]
[1726687104388,3.88531698,130.96,130.88,1.4607]
[1726687104601,3.88531698,130.96,130.84,47.71]
[1726687104602,47.71,130.95,130.85,3.002]
[1726687104898,47.71,130.93,130.81,1.4561]
[1726687105096,47.71,130.9,130.81,4.3566]
[1726687105288,3.8205,130.86,130.81,4.3566]
[1726687105490,3.79097238,130.87,130.79,152.78]
[1726687105793,3.8216,130.82,130.74,4.3566]
[1726687105994,3.74475498,130.85,130.75,47.71]
[1726687106199,47.71,130.86,130.75,47.71]
[1726687106400,3.8218,130.81,130.76,3.8229]
[1726687106597,47.71,130.84,130.74,4.3566]
[1726687107197,1.5195,130.85,130.68,1.4511]
[1726687107198,47.71,130.79,130.68,1.4511]
[1726687107497,47.71,130.77,130.65,47.71]
[1726687107796,47.71,130.75,130.65,47.71]
[1726687108105,47.71,130.75,130.64,1.4511]
[1726687108300,3.73787038,130.75,130.65,47.71]
[1726687108597,1.5195,130.76,130.68,3.8255]
[1726687108821,3.79448159,130.75,130.67,47.71]
[1726687109296,3.79448159,130.75,130.69,3.825]
[1726687109495,1.5195,130.76,130.69,3.825]
[1726687109801,3.80557433,130.75,130.69,3.8252]